bitfinex-derivatives/quotes_BTCF0:USTF0_20250903
["timestamp","ask_amount","ask_price","bid_price","bid_amount"]
[1756922937041,1.08265094,112570.0,112560.0,0.85034]
[1756922937236,1.08165094,112570.0,112560.0,0.85034]
[1756922937437,1.08365094,112570.0,112560.0,0.85034]
[1756922939348,0.78585238,112570.0,112560.0,0.85034]
[1756922941048,0.84962308,112570.0,112560.0,0.85034]
[1756922942442,0.48690757,112570.0,112560.0,0.85034]
[1756922942645,0.84961049,112570.0,112560.0,0.85034]
[1756922943250,0.84961049,112570.0,112560.0,0.8651]
[1756922943951,0.84961049,112570.0,112560.0,0.85034]
[1756922945345,0.86574303,112570.0,112560.0,0.80233089]
[1756922945550,0.86574303,112570.0,112560.0,0.75325722]
[1756922948353,0.78583979,112570.0,112560.0,0.75325722]
[1756922949049,0.42313687,112570.0,112560.0,0.75325722]
[1756922949249,0.78583979,112570.0,112560.0,0.75325722]
[1756922949653,0.89782663,112570.0,112560.0,0.75325722]
[1756922949858,0.89782663,112570.0,112560.0,0.02294]
[1756922950050,0.89782663,112570.0,112560.0,0.84874]
[1756922954456,0.53702663,112570.0,112560.0,0.84874]
[1756922954657,0.53702663,112570.0,112560.0,0.85597]
[1756922954860,0.53702663,112570.0,112560.0,1.21677]
[1756922955066,0.53702663,112570.0,112560.0,1.46677]
[1756922955067,0.52245663,112570.0,112560.0,1.46677]
[1756922955262,0.41046979,112570.0,112560.0,1.46677]
[1756922955469,0.49030258,112570.0,112560.0,1.46677]
[1756922955768,0.48830258,112570.0,112560.0,1.46677]
[1756922956270,0.48730258,112570.0,112560.0,1.46677]
[1756922958068,0.08409775,112570.0,112560.0,1.82947292]
[1756922958369,0.02021687,112570.0,112560.0,1.82947292]
[1756922959074,0.01921687,112570.0,112560.0,1.82947292]
[1756922959370,0.01921687,112570.0,112560.0,2.18951292]
[1756922959566,0.01921687,112570.0,112560.0,1.83395292]
[1756922959764,0.06713378,112570.0,112560.0,1.83395292]
[1756922959966,0.06713378,112570.0,112560.0,1.92277192]
[1756922960162,0.06713378,112570.0,112560.0,1.83395292]
[1756922960359,0.08309775,112570.0,112560.0,1.83395292]
[1756922961272,0.01921687,112570.0,112560.0,1.83395292]
[1756922961470,0.0479182,112570.0,112560.0,2.18395292]
[1756922961658,0.01921687,112570.0,112560.0,2.53704068]
[1756922962168,0.01921687,112570.0,112560.0,3.36092068]
[1756922963564,0.01921687,112570.0,112560.0,3.36133608]
[1756922964270,0.0479582,112600.0,112570.0,0.1269311]
[1756922964566,0.09108823,112600.0,112590.0,0.75935677]
[1756922964768,0.09108823,112600.0,112590.0,1.58287677]
[1756922965472,0.04317003,112600.0,112590.0,1.58287677]
[1756922965771,0.04417003,112600.0,112590.0,1.58287677]
[1756922966270,0.07290865,112600.0,112590.0,1.58287677]
[1756922966465,0.09394868,112600.0,112590.0,1.58387677]
[1756922966865,0.09394868,112600.0,112590.0,1.59221685]
[1756922967569,0.06985868,112600.0,112590.0,1.59221685]
[1756922967969,0.06685868,112600.0,112590.0,1.59321685]
[1756922968363,0.09094868,112600.0,112590.0,1.59313685]
[1756922969465,0.09094868,112600.0,112590.0,1.59265685]
[1756922969867,0.01908003,112600.0,112590.0,0.77013685]
[1756922970374,0.01908003,112600.0,112590.0,1.92253685]
[1756922970873,0.01908003,112600.0,112590.0,1.59253685]
[1756922971273,0.01908003,112600.0,112590.0,0.77013685]
[1756922971472,0.01908003,112600.0,112590.0,1.59229685]
[1756922971672,0.01908003,112600.0,112590.0,1.85749685]
[1756922971874,0.01908003,112600.0,112590.0,2.32629215]
[1756922972077,0.01908003,112600.0,112590.0,3.65471246]
[1756922972373,0.01908003,112600.0,112590.0,3.60463246]
[1756922972677,0.01903566,112600.0,112590.0,2.46255246]
[1756922972882,0.01903566,112600.0,112590.0,3.28475246]
[1756922973271,0.01903566,112600.0,112590.0,3.60475246]
[1756922973570,0.01903566,112600.0,112590.0,3.59475246]
[1756922974178,0.01903566,112600.0,112590.0,3.65475246]
[1756922974377,0.01903566,112600.0,112590.0,3.64475246]
[1756922974677,4e-05,112600.0,112590.0,3.60475246]
[1756922974880,4e-05,112600.0,112590.0,3.28475246]
[1756922975580,4e-05,112600.0,112590.0,3.19595716]
[1756922975879,4e-05,112600.0,112590.0,1.85693685]
[1756922976578,4e-05,112600.0,112590.0,1.03533685]
[1756922976877,4e-05,112600.0,112590.0,1.85697685]
[1756922977582,4e-05,112600.0,112590.0,1.49417008]
[1756922977781,4e-05,112600.0,112590.0,1.85697685]
[1756922978277,4e-05,112600.0,112590.0,1.85693685]
[1756922980582,0.40141677,112600.0,112590.0,1.47352]
[1756922981081,0.03861,112600.0,112590.0,1.47352]
[1756922982581,0.02395,112600.0,112590.0,1.48483]
[1756922982878,4e-05,112600.0,112590.0,1.84763677]
[1756922983784,4e-05,112600.0,112590.0,2.17763677]
[1756922984081,4e-05,112600.0,112590.0,2.18633042]
[1756922984581,4e-05,112600.0,112590.0,2.27512572]
[1756922984774,4e-05,112600.0,112590.0,2.18633042]
[1756922985683,4e-05,112600.0,112590.0,2.19077042]
[1756922987479,0.04781865,112600.0,112590.0,2.19077042]
[1756922989783,0.04781865,112600.0,112590.0,1.86077042]
[1756922990080,0.04781865,112600.0,112590.0,1.03969042]
[1756922990280,0.04781865,112600.0,112590.0,1.85953042]
[1756922991379,4e-05,112600.0,112590.0,1.85953042]
[1756922992184,0.06392088,112600.0,112590.0,1.85953042]
[1756922993981,0.06392088,112600.0,112590.0,2.17953042]
[1756922994192,0.08240037,112600.0,112590.0,1.85953042]
[1756922994391,0.08240037,112600.0,112590.0,2.19953042]
[1756922994574,0.08240037,112600.0,112590.0,1.85953042]
[1756922994775,0.08240037,112600.0,112590.0,2.25832572]
[1756922994980,0.08240037,112600.0,112590.0,2.62113249]
[1756922995379,0.01851949,112600.0,112590.0,3.34674603]
[1756922997387,0.04795842,112600.0,112590.0,3.34674603]
[1756922997681,0.06643791,112600.0,112590.0,3.34674603]
[1756922997888,0.01851949,112600.0,112590.0,3.34674603]
[1756922998385,0.04795842,112600.0,112590.0,3.34674603]
[1756922998786,0.06643791,112600.0,112590.0,3.34674603]
[1756922999586,0.06643791,112600.0,112590.0,1.03969042]
[1756923000085,0.06643791,112600.0,112590.0,1.85837042]
[1756923000281,0.09034791,112600.0,112590.0,1.49556365]
[1756923000486,0.10500791,112600.0,112590.0,1.85837042]
[1756923000687,0.09034791,112600.0,112590.0,1.85837042]
[1756923002084,0.09034791,112600.0,112590.0,1.03969042]
[1756923002282,0.09034791,112600.0,112590.0,1.85837042]
[1756923002489,0.10500791,112600.0,112590.0,1.49556365]
[1756923002788,0.10500791,112600.0,112590.0,1.85837042]
[1756923003987,0.10500791,112600.0,112590.0,1.02838042]
[1756923004183,0.46781468,112600.0,112590.0,1.48421365]
[1756923004387,0.10500791,112600.0,112590.0,1.48421365]
[1756923006182,0.10500791,112600.0,112590.0,0.66557365]
[1756923006386,0.46781468,112600.0,112590.0,0.65688]
[1756923006579,0.71785776,112600.0,112590.0,0.39168]
[1756923006783,0.66989626,112600.0,112590.0,1.20588]
[1756923007286,0.66989626,112600.0,112590.0,0.38724]
[1756923007583,0.67888172,112600.0,112590.0,0.38724]
[1756923007974,0.67888172,112600.0,112590.0,1.17944]
[1756923008782,0.67888172,112600.0,112590.0,1.20242]
[1756923009095,0.67988172,112600.0,112590.0,1.20242]
[1756923009587,0.67089626,112600.0,112590.0,1.20242]
[1756923009785,0.42089626,112600.0,112590.0,1.20242]
[1756923010383,0.10600149,112600.0,112590.0,1.20242]
[1756923011085,0.09134149,112600.0,112590.0,1.21373]
[1756923012592,0.09034149,112600.0,112590.0,1.21373]
[1756923013191,0.09034149,112600.0,112590.0,1.21573]
[1756923014184,0.10631037,112600.0,112590.0,1.21573]
[1756923014689,0.10631037,112600.0,112590.0,1.21373]
[1756923015288,0.48379714,112600.0,112590.0,1.20242]
[1756923015585,0.41991626,112600.0,112590.0,1.20242]
[1756923015892,0.41991626,112600.0,112590.0,1.20246]
[1756923016987,0.48379714,112600.0,112590.0,1.20246]
[1756923017294,0.41991626,112600.0,112590.0,1.20246]
[1756923018395,0.41991626,112600.0,112590.0,0.38378]
[1756923018589,0.41991626,112600.0,112590.0,1.20246]
[1756923018791,0.41991626,112600.0,112590.0,0.38378]
[1756923019094,0.48379714,112600.0,112590.0,1.20246]
[1756923020083,0.41991626,112600.0,112590.0,1.20246]
[1756923020994,0.46779319,112600.0,112590.0,1.20246]
[1756923021196,0.41991626,112600.0,112590.0,1.20246]
[1756923021395,0.46779227,112600.0,112590.0,1.20246]
[1756923021995,0.45411227,112600.0,112590.0,1.21377]
[1756923022589,0.46779227,112600.0,112590.0,1.20246]
[1756923023497,0.46679227,112600.0,112590.0,1.20246]
[1756923025488,0.46679227,112600.0,112590.0,0.02298]
[1756923025489,1.09474119,112600.0,112590.0,0.02298]
[1756923025796,1.45765787,112600.0,112590.0,0.81864]
[1756923025993,0.01368,112590.0,112580.0,2.14712]
[1756923026205,1.48396277,112590.0,112580.0,2.96576]
[1756923026493,0.03215949,112590.0,112580.0,2.96132]
[1756923026696,0.39511031,112590.0,112580.0,2.96132]
[1756923027595,0.39711031,112590.0,112580.0,2.96132]
[1756923027988,0.39511031,112590.0,112580.0,2.69612]
[1756923028492,0.45895705,112590.0,112580.0,2.69612]
[1756923028890,0.08232623,112590.0,112580.0,3.06823]
[1756923029096,0.08232623,112590.0,112580.0,3.43118082]
[1756923029289,0.06384674,112590.0,112580.0,3.43118082]
[1756923029492,0.42679756,112590.0,112580.0,3.06823]
[1756923029696,0.44527705,112590.0,112580.0,3.06823]
[1756923029900,0.44727705,112590.0,112580.0,3.06823]
[1756923030701,0.06835667,112590.0,112580.0,3.68118082]
[1756923030902,0.06635667,112590.0,112580.0,3.68318082]
[1756923031301,0.04787718,112590.0,112580.0,3.68318082]
[1756923031805,0.06635667,112590.0,112580.0,3.68318082]
[1756923032103,0.04887718,112590.0,112580.0,3.68418082]
[1756923032811,0.06735667,112590.0,112580.0,3.68418082]
[1756923033802,0.06735667,112590.0,112580.0,3.94938082]
[1756923034003,0.06735667,112590.0,112580.0,4.29038082]
[1756923034204,0.06735667,112590.0,112580.0,4.37918392]
[1756923034400,0.01947949,112590.0,112580.0,4.37918392]
[1756923035705,0.04887718,112590.0,112580.0,4.37918392]
[1756923035899,0.06735667,112590.0,112580.0,4.37918392]
[1756923036294,0.06735667,112590.0,112580.0,4.37914392]
[1756923039902,0.06735667,112590.0,112580.0,4.37906392]
[1756923042911,0.06735667,112590.0,112580.0,4.45026654]
[1756923043207,0.06735667,112590.0,112580.0,3.63174654]
[1756923043410,0.06735667,112590.0,112580.0,4.45022654]
[1756923043609,0.06735667,112590.0,112580.0,4.45018654]
[1756923044511,0.01947949,112590.0,112580.0,4.45018654]
[1756923044712,0.01947949,112590.0,112580.0,3.63174654]
[1756923045212,0.01947949,112590.0,112580.0,4.45018654]
[1756923046509,0.01947949,112590.0,112580.0,4.45014654]
[1756923048014,0.01947949,112590.0,112580.0,3.54294344]
[1756923048215,0.01947949,112590.0,112580.0,4.36134344]
[1756923049512,0.01947949,112590.0,112580.0,4.45014664]
[1756923049915,0.01947949,112590.0,112580.0,3.63174664]
[1756923050115,0.01947949,112590.0,112580.0,4.45010664]
[1756923050311,0.01947949,112590.0,112580.0,2.95294344]
[1756923050515,0.01947949,112590.0,112580.0,3.77126344]
[1756923050906,0.03447949,112590.0,112580.0,3.68875082]
[1756923051318,0.01947949,112590.0,112580.0,3.70006082]
[1756923052113,0.01947949,112590.0,112580.0,2.88174082]
[1756923052416,0.01947949,112590.0,112580.0,3.70446082]
[1756923053007,0.03447949,112590.0,112580.0,3.70446082]
[1756923053421,0.28447949,112590.0,112580.0,2.87487082]
[1756923053620,0.28447949,112590.0,112580.0,3.69315082]
[1756923054211,0.28447949,112590.0,112580.0,3.70446082]
[1756923055723,0.28447949,112590.0,112580.0,3.33016]
[1756923056226,0.28447949,112590.0,112580.0,3.69311082]
[1756923057528,0.64743031,112590.0,112580.0,2.70412]
[1756923057824,0.69530749,112590.0,112580.0,3.06492]
[1756923058024,2.18471951,112590.0,112580.0,0.00544]
[1756923058227,0.03879,112570.0,112560.0,0.38417]
[1756923058430,0.44961883,112570.0,112560.0,1.45189]
[1756923058621,0.71809832,112570.0,112560.0,1.45189]
[1756923059227,0.46809832,112570.0,112560.0,1.45189]
[1756923059725,0.46809832,112570.0,112560.0,1.45589]
[1756923059927,0.46909832,112570.0,112560.0,1.45889]
[1756923060732,0.46909832,112570.0,112560.0,1.45289]
[1756923061528,0.47798981,112570.0,112560.0,1.45289]
[1756923061724,0.46909832,112570.0,112560.0,1.45289]
[1756923063232,0.1061475,112570.0,112560.0,1.45289]
[1756923063436,0.46909832,112570.0,112560.0,1.46554]
[1756923063933,0.1061475,112570.0,112560.0,1.46554]
[1756923064135,0.46909832,112570.0,112560.0,1.46554]
[1756923064329,0.42122031,112570.0,112560.0,1.46554]
[1756923064529,0.46909832,112570.0,112560.0,1.46554]
[1756923064829,0.46909832,112570.0,112560.0,1.45289]
[1756923065630,0.42122031,112570.0,112560.0,1.45289]
[1756923066535,0.42122031,112570.0,112560.0,1.46554]
[1756923068236,0.04326949,112570.0,112560.0,1.46554]
[1756923071538,0.01947949,112570.0,112560.0,1.46554]
[1756923071734,0.001,112570.0,112560.0,1.46554]
[1756923072330,0.01947949,112570.0,112560.0,1.46554]
[1756923072530,0.001,112570.0,112560.0,1.46554]
[1756923073039,0.01947949,112570.0,112560.0,1.46554]
[1756923073238,0.36395082,112570.0,112560.0,1.46554]
[1756923073441,0.38243031,112570.0,112560.0,1.46554]
[1756923075544,0.0673575,112570.0,112560.0,1.46554]
[1756923075739,0.41182883,112570.0,112560.0,1.46554]
[1756923075936,0.43030832,112570.0,112560.0,1.46554]
[1756923076132,0.0673575,112570.0,112560.0,1.46554]
[1756923076335,0.04887801,112570.0,112560.0,1.46554]
[1756923076536,0.43030832,112570.0,112560.0,1.46554]
[1756923080349,0.38243031,112570.0,112560.0,1.46554]
[1756923080849,0.43024901,112570.0,112560.0,1.46554]
[1756923081349,0.38243031,112570.0,112560.0,1.46554]
[1756923082551,0.44626765,112570.0,112560.0,1.46554]
[1756923084454,0.46110765,112570.0,112560.0,1.46554]
[1756923084648,0.46110765,112570.0,112560.0,1.45289]
[1756923085253,0.48598765,112570.0,112560.0,0.69517]
[1756923085551,0.47005461,112570.0,112560.0,1.52305]
[1756923086853,0.47005461,112570.0,112560.0,1.5357]
[1756923087555,0.48607877,112570.0,112560.0,1.5357]
[1756923090351,0.48607877,112570.0,112560.0,1.5316]
[1756923090550,0.48607877,112570.0,112560.0,0.69107]
[1756923090750,0.48607877,112570.0,112560.0,1.51759]
[1756923091254,0.72023033,112570.0,112560.0,1.20759]
[1756923091556,0.67224143,112570.0,112560.0,1.20759]
[1756923092558,0.40740143,112570.0,112560.0,1.21614]
[1756923092944,0.4553893,112570.0,112560.0,1.21614]
[1756923093749,0.09234736,112570.0,112560.0,1.21614]
[1756923093952,0.06746736,112570.0,112560.0,1.21614]
[1756923094153,0.04898787,112570.0,112560.0,1.21614]
[1756923094359,0.06746736,112570.0,112560.0,1.21614]
[1756923094551,0.04898787,112570.0,112560.0,1.21614]
[1756923094751,0.06746736,112570.0,112560.0,1.21614]
[1756923094953,0.41202981,112570.0,112560.0,1.21614]
[1756923095252,0.4305093,112570.0,112560.0,1.21614]
[1756923095656,0.38410868,112570.0,112560.0,1.21614]
[1756923096358,0.43209625,112570.0,112560.0,1.21614]
[1756923096958,0.08389431,112570.0,112560.0,1.20759]
[1756923097158,0.44693625,112570.0,112560.0,1.21614]
[1756923100561,0.43209625,112570.0,112560.0,1.21614]
[1756923100958,0.06905431,112570.0,112560.0,1.21614]
[1756923101161,0.02106674,112570.0,112560.0,1.21614]
[1756923103163,0.38410868,112570.0,112560.0,1.21614]
[1756923103758,0.39790868,112570.0,112560.0,1.20759]
[1756923104264,0.42203868,112570.0,112560.0,0.38107]
[1756923104462,0.42203868,112570.0,112560.0,1.20787]
[1756923104865,0.42203868,112570.0,112560.0,1.20759]
[1756923105059,0.42203868,112570.0,112560.0,0.38107]
[1756923105260,0.42203868,112570.0,112560.0,1.20751]
[1756923105565,0.48587602,112570.0,112560.0,1.20751]
[1756923105770,0.48587602,112570.0,112560.0,1.20735]
[1756923106366,0.42203868,112570.0,112560.0,1.20735]
[1756923106761,0.48587602,112570.0,112560.0,1.20735]
[1756923106968,0.10903408,112570.0,112560.0,1.2159]
[1756923107172,0.47207602,112570.0,112560.0,1.2159]
[1756923107363,0.40823868,112570.0,112560.0,1.2159]
[1756923107564,0.47207602,112570.0,112560.0,1.2159]
[1756923109373,0.47401664,112570.0,112560.0,1.2159]
[1756923110474,0.4101793,112570.0,112560.0,1.2159]
[1756923112782,0.45817396,112570.0,112560.0,1.2159]
[1756923115283,0.4101793,112570.0,112560.0,1.2159]
[1756923115583,0.47197729,112570.0,112560.0,1.21474]
[1756923116079,0.47197729,112570.0,112560.0,1.20583]
[1756923116483,0.47197729,112570.0,112560.0,0.38107]
[1756923116877,0.47197729,112570.0,112560.0,1.20575]
[1756923117379,0.47197729,112570.0,112560.0,0.001]
[1756923117380,2.17190311,112570.0,112560.0,0.001]
[1756923117572,2.12390512,112570.0,112560.0,0.82568]
[1756923117778,2.12390512,112570.0,112560.0,0.001]
[1756923117978,2.12390512,112570.0,112560.0,0.82564]
[1756923118686,2.20373791,112570.0,112560.0,0.82564]
[1756923119287,1.87390512,112570.0,112560.0,0.82564]
[1756923119883,1.87390512,112570.0,112560.0,0.84995]
[1756923119884,2.12390512,112570.0,112560.0,0.84995]
[1756923120087,1.0347793,112570.0,112560.0,0.84995]
[1756923120982,0.7847793,112570.0,112560.0,0.84995]
[1756923121176,0.84869901,112570.0,112560.0,0.84995]
[1756923121383,0.84869901,112570.0,112560.0,1.2193]
[1756923121384,0.11105707,112570.0,112560.0,1.2193]
[1756923121694,0.08692707,112570.0,112560.0,1.2193]
[1756923122086,0.44996901,112570.0,112560.0,1.2193]
[1756923123890,0.08692707,112570.0,112560.0,1.2193]
[1756923124189,0.44996901,112570.0,112560.0,1.2193]
[1756923124788,0.08692707,112570.0,112560.0,1.2193]
[1756923124989,0.44996901,112570.0,112560.0,1.2193]
[1756923125490,0.3860493,112570.0,112560.0,1.2193]
[1756923125690,0.46588209,112570.0,112560.0,1.2193]
[1756923126893,0.50381209,112570.0,112560.0,0.38611]
[1756923127101,0.50381209,112570.0,112560.0,1.20991]
[1756923127384,0.50381209,112570.0,112560.0,0.84883]
[1756923127585,0.50381209,112570.0,112560.0,0.84879]
[1756923127890,0.4239793,112570.0,112560.0,0.84879]
[1756923129088,0.50381209,112570.0,112560.0,0.84879]
[1756923129276,0.4246593,112570.0,112560.0,0.85734]
[1756923129481,0.4246593,112570.0,112560.0,0.84879]
[1756923130690,0.50449209,112570.0,112560.0,0.84879]
[1756923131993,0.4246593,112570.0,112560.0,0.02531]
[1756923132491,0.4246593,112570.0,112560.0,0.84795]
[1756923132790,0.4101793,112570.0,112560.0,0.8565]
[1756923132990,0.4246593,112570.0,112560.0,0.8565]
[1756923133987,0.4101793,112570.0,112560.0,1.2173]
[1756923134186,0.04713736,112570.0,112560.0,1.2173]
[1756923134386,0.02300736,112570.0,112560.0,1.58034194]
[1756923134585,0.02300736,112570.0,112560.0,1.83034194]
[1756923134781,0.00294062,112570.0,112560.0,2.24916094]
[1756923134987,0.05086844,112570.0,112560.0,3.00828676]
[1756923135187,0.07093518,112570.0,112560.0,3.00828676]
[1756923135387,0.02300736,112570.0,112560.0,3.00828676]
[1756923135991,0.02300736,112570.0,112560.0,1.91916094]
[1756923136694,0.02300736,112570.0,112560.0,3.00828676]
[1756923137092,0.02300736,112570.0,112560.0,3.27348676]
[1756923137491,0.02300736,112570.0,112560.0,2.45084676]
[1756923137692,0.02300736,112570.0,112560.0,3.27336676]
[1756923138896,0.02300736,112570.0,112560.0,2.45084676]
[1756923139199,0.02300736,112570.0,112560.0,3.27308676]
[1756923140695,0.02300736,112570.0,112560.0,3.00788676]
[1756923143395,0.00294062,112570.0,112560.0,3.00788676]
[1756923144192,0.00294062,112570.0,112560.0,3.00712676]
[1756923144597,4e-05,112600.0,112580.0,0.0887961]
[1756923144902,0.04515651,112600.0,112590.0,1.96571829]
[1756923145200,0.67267845,112600.0,112590.0,0.3608]
[1756923145404,1.92053209,112600.0,112590.0,0.82168]
[1756923145605,2.17053209,112600.0,112590.0,0.82168]
[1756923145806,2.17253209,112600.0,112590.0,0.82168]
[1756923146101,2.12460427,112600.0,112590.0,0.82168]
[1756923147104,2.17540283,112600.0,112590.0,0.82168]
[1756923147503,2.17226795,112600.0,112590.0,0.82168]
[1756923147802,2.12946939,112600.0,112590.0,0.82268]
[1756923148603,2.19338045,112600.0,112590.0,0.82268]
[1756923148904,2.19338045,112600.0,112590.0,0.82352]
[1756923149705,2.19338045,112600.0,112590.0,0.001]
[1756923149894,2.19338045,112600.0,112590.0,0.77148]
[1756923151900,0.01448,112570.0,112560.0,0.38548]
[1756923152105,0.08711972,112570.0,112560.0,1.20728]
[1756923152302,0.10742623,112570.0,112560.0,1.20728]
[1756923153104,0.47043445,112570.0,112560.0,1.20728]
[1756923153809,0.47043445,112570.0,112560.0,1.20828]
[1756923154509,0.4794279,112570.0,112560.0,1.20828]
[1756923154713,0.4794279,112570.0,112560.0,1.20784]
[1756923155909,0.4794279,112570.0,112560.0,0.38648]
[1756923156108,0.4794279,112570.0,112560.0,1.20784]
[1756923156305,0.84543612,112570.0,112560.0,0.02568]
[1756923156614,1.04639818,112570.0,112560.0,0.82224]
[1756923156912,1.11017114,112570.0,112560.0,0.82224]
[1756923157113,1.04639818,112570.0,112560.0,0.82224]
[1756923157415,1.04639818,112570.0,112560.0,0.84692]
[1756923158314,1.11017114,112570.0,112560.0,0.84692]
[1756923158512,1.11017114,112570.0,112560.0,0.82224]
[1756923158812,1.47317936,112570.0,112560.0,0.82236]
[1756923159510,2.13542284,112570.0,112540.0,2.24272]
[1756923159716,0.42485108,112550.0,112540.0,1.88192]
[1756923160016,0.44515759,112550.0,112540.0,2.70348]
[1756923160907,0.44515759,112550.0,112540.0,2.70548]
[1756923161107,0.44615759,112550.0,112540.0,2.70548]
[1756923161520,0.51818217,112550.0,112540.0,2.70548]
[1756923161907,0.51818217,112550.0,112540.0,2.70648]
[1756923166125,0.87898217,112550.0,112540.0,2.70648]
[1756923166911,0.87898217,112550.0,112540.0,2.70204]
[1756923173219,0.14116395,112550.0,112540.0,3.68939822]
[1756923173419,0.09333109,112550.0,112540.0,3.32639]
[1756923173727,0.09333109,112550.0,112540.0,3.68939822]
[1756923174125,0.09333109,112550.0,112540.0,3.77823302]
[1756923174315,0.02130651,112550.0,112540.0,3.77823302]
[1756923175622,0.04883286,112550.0,112540.0,3.77823302]
[1756923177127,0.06913937,112550.0,112540.0,3.77823302]
[1756923178136,0.06913937,112550.0,112540.0,3.77735302]
[1756923179028,0.06913937,112550.0,112540.0,2.86783822]
[1756923179233,0.06913937,112550.0,112540.0,3.43847822]
[1756923179737,0.43214759,112550.0,112540.0,2.25483]
[1756923179928,0.43214759,112550.0,112540.0,3.07547]
[1756923180126,0.43214759,112550.0,112540.0,3.43847822]
[1756923180127,0.06913937,112550.0,112540.0,3.43847822]
[1756923180324,0.06913937,112550.0,112540.0,3.68847822]
[1756923180525,0.06913937,112550.0,112540.0,3.77731302]
[1756923182535,0.06913937,112550.0,112540.0,3.77727302]
[1756923182737,0.06913937,112550.0,112540.0,2.95667302]
[1756923182938,0.06913937,112550.0,112540.0,3.77727302]
[1756923183131,0.02130651,112550.0,112540.0,3.77727302]
[1756923183330,0.02130651,112550.0,112540.0,2.95667302]
[1756923183531,0.02130651,112550.0,112540.0,3.77727302]
[1756923184436,0.02130651,112550.0,112540.0,2.86783822]
[1756923184832,0.02130651,112550.0,112540.0,2.25483]
[1756923185138,0.02130651,112550.0,112540.0,3.70363822]
[1756923185541,0.02130651,112550.0,112540.0,3.79247302]
[1756923190540,0.02130651,112550.0,112540.0,3.79691302]
[1756923190743,0.02130651,112550.0,112540.0,4.04691302]
[1756923196064,0.02130651,112550.0,112540.0,4.40992124]
[1756923196249,0.02130651,112550.0,112540.0,5.13593768]
[1756923196959,0.08630286,112590.0,112580.0,0.02341]
[1756923197153,0.08620286,112590.0,112580.0,1.20465]
[1756923198456,0.44921108,112590.0,112580.0,1.20465]
[1756923198652,0.45421108,112590.0,112580.0,1.20565]
[1756923199356,0.45721108,112590.0,112580.0,1.20565]
[1756923199547,0.09420286,112590.0,112580.0,1.20565]
[1756923199754,0.16377977,112590.0,112580.0,1.20565]
[1756923199955,0.16377977,112590.0,112580.0,1.58220822]
[1756923200258,0.16379021,112590.0,112580.0,1.22821693]
[1756923201163,0.16379021,112590.0,112580.0,1.21466693]
[1756923201465,0.15879021,112590.0,112580.0,1.21366693]
[1756923201658,0.15979021,112590.0,112580.0,1.20565]
[1756923201965,0.15679021,112590.0,112580.0,1.20565]
[1756923205068,0.15679021,112590.0,112580.0,1.56865822]
[1756923205569,0.10894691,112590.0,112580.0,1.56865822]
[1756923205865,0.10894691,112590.0,112580.0,1.57778556]
[1756923207268,0.15679277,112590.0,112580.0,1.57778556]
[1756923207765,0.07320586,112590.0,112580.0,1.59133556]
[1756923207971,0.07320586,112590.0,112580.0,1.85653556]
[1756923207972,0.04884586,112590.0,112580.0,1.85653556]
[1756923208160,0.001,112590.0,112580.0,1.85653556]
[1756923208663,0.001,112590.0,112580.0,1.86097556]
[1756923209366,0.02133528,112590.0,112580.0,1.86097556]
[1756923209670,0.02133528,112590.0,112580.0,1.86079718]
[1756923210769,0.06918114,112590.0,112580.0,1.86079718]
[1756923211865,0.06918114,112590.0,112580.0,1.59559718]
[1756923212871,0.06918114,112590.0,112580.0,0.77515718]
[1756923213170,0.06918114,112590.0,112580.0,1.59527718]
[1756923213866,0.09354114,112590.0,112580.0,0.4032]
[1756923214070,0.47037098,112590.0,112580.0,1.20973]
[1756923214763,0.10754114,112590.0,112580.0,1.22328]
[1756923214969,0.47037098,112590.0,112580.0,1.22328]
[1756923215672,0.42252512,112590.0,112580.0,1.22328]
[1756923215862,0.04569528,112590.0,112580.0,1.22328]
[1756923216065,0.08913688,112590.0,112580.0,1.58610984]
[1756923216364,0.04569528,112590.0,112580.0,1.22328]
[1756923216670,0.04569528,112590.0,112580.0,1.58610984]
[1756923217469,0.42252512,112590.0,112580.0,1.20969]
[1756923218073,0.42252512,112590.0,112580.0,0.38965]
[1756923218280,0.42252512,112590.0,112580.0,0.84885]
[1756923218468,0.50235791,112590.0,112580.0,1.20965]
[1756923219268,0.13952807,112590.0,112580.0,1.20965]
[1756923219468,0.50235791,112590.0,112580.0,1.2232]
[1756923220277,0.50235791,112590.0,112580.0,1.20961]
[1756923220673,0.50235791,112590.0,112580.0,0.38965]
[1756923220977,0.42252512,112590.0,112580.0,1.20961]
[1756923221377,1.84084743,112590.0,112580.0,0.00544]
[1756923221579,1.84084743,112590.0,112570.0,0.626]
[1756923221775,0.48191263,112580.0,112570.0,0.2894]
[1756923221979,0.50224791,112580.0,112570.0,0.2894]
[1756923222176,0.75224791,112580.0,112570.0,0.0242]
[1756923222372,0.03925,112570.0,112560.0,0.385]
[1756923222571,0.50224784,112570.0,112560.0,1.20492]
[1756923222767,0.53440196,112570.0,112560.0,1.20492]
[1756923222974,0.54333326,112570.0,112560.0,1.20492]
[1756923223275,0.79333326,112570.0,112560.0,0.385]
[1756923223474,0.0146,112550.0,112540.0,2.25183]
[1756923223665,0.47759384,112550.0,112540.0,3.07175]
[1756923224072,0.47759384,112550.0,112540.0,3.0582]
[1756923225073,0.47859384,112550.0,112540.0,3.0592]
[1756923225574,0.44661972,112550.0,112540.0,3.0592]
[1756923226281,0.44661972,112550.0,112540.0,3.0602]
[1756923229281,0.39876512,112550.0,112540.0,3.0602]
[1756923231478,0.39876512,112550.0,112540.0,3.07375]
[1756923232877,1.03421512,112550.0,112540.0,0.0262]
[1756923233078,2.17055924,112550.0,112540.0,0.002]
[1756923233385,1.09802126,112550.0,112540.0,0.002]
[1756923233780,1.4608511,112550.0,112540.0,0.002]
[1756923233980,1.09802126,112550.0,112540.0,0.002]
[1756923234184,1.4608511,112550.0,112540.0,0.002]
[1756923234581,2.18651078,112550.0,112540.0,0.002]
[1756923236185,0.03925,112540.0,112530.0,0.66732]
[1756923236385,0.81057313,112540.0,112530.0,0.66732]
[1756923236586,0.83090841,112540.0,112530.0,0.66732]
[1756923236985,0.03925,112520.0,112510.0,0.0242]
[1756923237187,0.42241512,112520.0,112510.0,0.84416]
[1756923237589,0.47010878,112520.0,112510.0,0.84416]
[1756923238190,0.47905978,112520.0,112510.0,0.84416]
[1756923238689,0.47905978,112520.0,112510.0,0.0242]
[1756923238993,0.48205978,112520.0,112510.0,0.84516]
[1756923239798,0.55332169,112520.0,112510.0,0.84516]
[1756923240394,0.54437069,112520.0,112510.0,0.84516]
[1756923240692,0.90517069,112520.0,112510.0,0.84516]
[1756923240896,1.15517069,112520.0,112510.0,0.82096]